[Event "*** Titled Tuesday Blitz"]
[Site "Chess.com"]
[Date "2019.06.04"]
[Round "6"]
[White "HansCoolNiemann"]
[Black "enriquetejedor"]
[Result "1-0"]
[WhiteElo "2705"]
[BlackElo "2542"]
[TimeControl "180+2"]
[EndTime "14:18:48 PDT"]
[Termination "HansCoolNiemann won on time"]

1. e4 {[%clk 0:03:01.9]} 1... c5 {[%clk 0:02:52.4]} 2. Nf3 {[%clk 0:03:01.9]}
2... d6 {[%clk 0:02:46]} 3. d4 {[%clk 0:03:03.8]} 3... cxd4 {[%clk 0:02:47.8]}
4. Nxd4 {[%clk 0:03:05.7]} 4... Nf6 {[%clk 0:02:49.4]} 5. Nc3 {[%clk 0:03:06.3]}
5... a6 {[%clk 0:02:51.3]} 6. Be3 {[%clk 0:03:06.7]} 6... e5 {[%clk 0:02:50.6]}
7. Nb3 {[%clk 0:03:06.9]} 7... Be6 {[%clk 0:02:49.4]} 8. f3 {[%clk 0:03:03.2]}
8... Nbd7 {[%clk 0:02:49.2]} 9. Qd2 {[%clk 0:03:04.5]} 9... b5 {[%clk 0:02:50]}
10. O-O-O {[%clk 0:03:06.4]} 10... Nb6 {[%clk 0:02:39.5]} 11. Qf2 {[%clk
0:03:00.7]} 11... Nfd7 {[%clk 0:02:34.1]} 12. f4 {[%clk 0:02:58.4]} 12... Rc8
{[%clk 0:02:19]} 13. f5 {[%clk 0:02:53.5]} 13... Bc4 {[%clk 0:02:11.2]} 14. g4
{[%clk 0:02:51.1]} 14... Be7 {[%clk 0:02:02.5]} 15. h4 {[%clk 0:02:51.4]} 15...
b4 {[%clk 0:01:57.2]} 16. Nd5 {[%clk 0:02:48.1]} 16... Nxd5 {[%clk 0:01:54.7]}
17. exd5 {[%clk 0:02:50]} 17... a5 {[%clk 0:01:55.7]} 18. g5 {[%clk 0:02:42]}
18... a4 {[%clk 0:01:47.4]} 19. Bxc4 {[%clk 0:02:42.1]} 19... Rxc4 {[%clk
0:01:49.3]} 20. Nd2 {[%clk 0:02:43.7]} 20... Rc7 {[%clk 0:01:36.1]} 21. Kb1
{[%clk 0:02:40.3]} 21... Qc8 {[%clk 0:01:31.6]} 22. Ne4 {[%clk 0:02:34.3]} 22...
Rc4 {[%clk 0:01:15.7]} 23. Qg2 {[%clk 0:02:34.5]} 23... b3 {[%clk 0:00:46.9]}
24. cxb3 {[%clk 0:02:34.5]} 24... axb3 {[%clk 0:00:48.8]} 25. axb3 {[%clk
0:02:36.1]} 25... Rb4 {[%clk 0:00:48.5]} 26. Rhf1 {[%clk 0:02:29.8]} 26... Rxb3
{[%clk 0:00:37]} 27. f6 {[%clk 0:02:26.1]} 27... gxf6 {[%clk 0:00:08]} 28. gxf6
{[%clk 0:02:27.3]} 28... Bf8 {[%clk 0:00:09.1]} 29. Bh6 {[%clk 0:02:25.3]} 29...
Qa6 {[%clk 0:00:05.8]} 30. Bxf8 {[%clk 0:02:24]} 30... Rxf8 {[%clk 0:00:06.1]}
31. Qc2 {[%clk 0:02:23.9]} 31... Rb8 {[%clk 0:00:06.4]} 32. Qc6 {[%clk
0:02:23.4]} 32... Qxc6 {[%clk 0:00:02.7]} 33. dxc6 {[%clk 0:02:25.3]} 33... Nb6
{[%clk 0:00:02.7]} 34. Nxd6+ {[%clk 0:02:27.2]} 34... Kd8 {[%clk 0:00:03.8]} 35.
Nb5+ {[%clk 0:02:26.1]} 35... Kc8 {[%clk 0:00:04]} 36. c7 {[%clk 0:02:27.5]}
36... Ra8 {[%clk 0:00:03.8]} 37. Rd6 {[%clk 0:02:27]} 37... Kb7 {[%clk 0:00:03]}
38. Rc1 {[%clk 0:02:26.2]} 38... Rfc8 {[%clk 0:00:03.2]} 39. Rcc6 {[%clk
0:02:26.4]} 39... Ra6 {[%clk 0:00:02.9]} 40. b3 {[%clk 0:02:25.3]} 40... e4
{[%clk 0:00:03.5]} 41. Kc2 {[%clk 0:02:25.2]} 41... h5 {[%clk 0:00:04.4]} 42.
Kd1 {[%clk 0:02:25.4]} 42... e3 {[%clk 0:00:05.1]} 43. Ke2 {[%clk 0:02:26.4]}
43... Rg8 {[%clk 0:00:05.5]} 44. Kxe3 {[%clk 0:02:25.8]} 44... Nd5+ {[%clk
0:00:05.8]} 45. Rxd5 {[%clk 0:02:22.9]} 45... Rxc6 {[%clk 0:00:06.6]} 46. Rd8
{[%clk 0:02:23.9]} 46... Rg3+ {[%clk 0:00:06.2]} 47. Kf2 {[%clk 0:02:22.6]}
47... Rxb3 {[%clk 0:00:03.3]} 48. Rb8+ {[%clk 0:02:22.5]} 48... Ka6 {[%clk
0:00:04.5]} 49. Nd4 {[%clk 0:02:23.3]} 49... Rxc7 {[%clk 0:00:02.7]} 50. Rxb3
{[%clk 0:02:21.8]} 50... Rc4 {[%clk 0:00:02.9]} 51. Ke3 {[%clk 0:02:22.3]} 51...
Rc5 {[%clk 0:00:03.5]} 52. Ke4 {[%clk 0:02:23]} 52... Rc1 {[%clk 0:00:03.9]} 53.
Kd5 {[%clk 0:02:23.7]} 53... Rh1 {[%clk 0:00:03.6]} 54. Ra3+ {[%clk 0:02:19.8]}
54... Kb6 {[%clk 0:00:03.5]} 55. Rb3+ {[%clk 0:02:20.8]} 55... Ka6 {[%clk
0:00:04.4]} 56. Re3 {[%clk 0:02:22.7]} 56... Rxh4 {[%clk 0:00:04.8]} 57. Re7
{[%clk 0:02:24.6]} 57... Rh1 {[%clk 0:00:04.9]} 58. Rxf7 {[%clk 0:02:25.8]}
58... h4 {[%clk 0:00:06.3]} 59. Rh7 {[%clk 0:02:27.1]} 59... h3 {[%clk
0:00:07.4]} 60. f7 {[%clk 0:02:28.5]} 60... Rf1 {[%clk 0:00:08.1]} 61. Ke6
{[%clk 0:02:29.8]} 61... Re1+ {[%clk 0:00:07.9]} 62. Kf6 {[%clk 0:02:31]} 62...
Rf1+ {[%clk 0:00:07.9]} 63. Nf5 {[%clk 0:02:32.6]} 63... h2 {[%clk 0:00:07.8]}
64. Rxh2 {[%clk 0:02:33]} 1-0

[Event "*** Titled Tuesday Blitz"]
[Site "Chess.com"]
[Date "2019.06.04"]
[Round "6"]
[White "GelmanAlexander"]
[Black "Indianlad"]
[Result "0-1"]
[WhiteElo "2600"]
[BlackElo "2866"]
[TimeControl "180+2"]
[EndTime "14:18:49 PDT"]
[Termination "Indianlad won on time"]

1. d4 {[%clk 0:03:01.9]} 1... Nf6 {[%clk 0:03:00.3]} 2. Nc3 {[%clk 0:03:02.7]}
2... d5 {[%clk 0:03:00.3]} 3. Bf4 {[%clk 0:03:03.7]} 3... a6 {[%clk 0:03:00.6]}
4. e3 {[%clk 0:03:03.2]} 4... e6 {[%clk 0:02:59.6]} 5. Nf3 {[%clk 0:03:00]} 5...
b5 {[%clk 0:03:01.1]} 6. Ne5 {[%clk 0:02:54.5]} 6... Bb7 {[%clk 0:02:59.5]} 7.
a3 {[%clk 0:02:51.5]} 7... c5 {[%clk 0:03:00.6]} 8. g4 {[%clk 0:02:50.4]} 8...
Nc6 {[%clk 0:02:59.2]} 9. Bg2 {[%clk 0:02:50.3]} 9... Rc8 {[%clk 0:02:52.7]} 10.
O-O {[%clk 0:02:44.3]} 10... Be7 {[%clk 0:02:49.6]} 11. h3 {[%clk 0:02:37.6]}
11... O-O {[%clk 0:02:49.8]} 12. Ne2 {[%clk 0:02:31]} 12... Nxe5 {[%clk
0:02:46.8]} 13. Bxe5 {[%clk 0:02:31.1]} 13... cxd4 {[%clk 0:02:44.9]} 14. exd4
{[%clk 0:02:28.2]} 14... Ne4 {[%clk 0:02:45.9]} 15. c3 {[%clk 0:02:21.7]} 15...
a5 {[%clk 0:02:36.8]} 16. Ng3 {[%clk 0:02:10.8]} 16... Nxg3 {[%clk 0:02:32.1]}
17. Bxg3 {[%clk 0:02:09.2]} 17... b4 {[%clk 0:02:33.4]} 18. cxb4 {[%clk
0:02:09]} 18... axb4 {[%clk 0:02:34.9]} 19. a4 {[%clk 0:02:10.3]} 19... Qa5
{[%clk 0:02:19.1]} 20. f4 {[%clk 0:02:02.2]} 20... Rc4 {[%clk 0:02:16]} 21. f5
{[%clk 0:01:56.4]} 21... Rxd4 {[%clk 0:02:14.8]} 22. Qf3 {[%clk 0:01:46.3]}
22... Bc5 {[%clk 0:02:11.4]} 23. Kh1 {[%clk 0:01:46.4]} 23... Rd2 {[%clk
0:02:08.5]} 24. b3 {[%clk 0:01:39.2]} 24... Ba8 {[%clk 0:02:04.6]} 25. Qf4
{[%clk 0:01:35.5]} 25... Re2 {[%clk 0:01:29.3]} 26. Rae1 {[%clk 0:01:27.6]}
26... Rxe1 {[%clk 0:01:27.5]} 27. Rxe1 {[%clk 0:01:28.5]} 27... exf5 {[%clk
0:01:28.1]} 28. gxf5 {[%clk 0:01:28]} 28... d4 {[%clk 0:01:29.1]} 29. f6 {[%clk
0:01:25.6]} 29... Bxg2+ {[%clk 0:01:30.2]} 30. Kxg2 {[%clk 0:01:27.5]} 30...
Qa8+ {[%clk 0:01:30.6]} 31. Kh2 {[%clk 0:01:28.6]} 31... Re8 {[%clk 0:01:25.8]}
32. Qg5 {[%clk 0:01:04]} 32... Bf8 {[%clk 0:01:26.8]} 33. fxg7 {[%clk
0:01:03.8]} 33... Bxg7 {[%clk 0:01:28.7]} 34. Re5 {[%clk 0:00:37.5]} 34... d3
{[%clk 0:01:17.3]} 35. a5 {[%clk 0:00:29.8]} 35... h6 {[%clk 0:01:18]} 36. Qg4
{[%clk 0:00:18.8]} 36... d2 {[%clk 0:01:05.5]} 37. a6 {[%clk 0:00:19.9]} 37...
Rd8 {[%clk 0:01:03.2]} 38. Qd1 {[%clk 0:00:12.5]} 38... Qxa6 {[%clk 0:01:03]}
39. Re4 {[%clk 0:00:11]} 39... Qa1 {[%clk 0:00:59]} 0-1

[Event "*** Titled Tuesday Blitz"]
[Site "Chess.com"]
[Date "2019.06.04"]
[Round "6"]
[White "IMRosen"]
[Black "Naruto-K"]
[Result "0-1"]
[WhiteElo "2511"]
[BlackElo "2413"]
[TimeControl "180+2"]
[EndTime "14:18:49 PDT"]
[Termination "Naruto-K won by resignation"]

1. d4 {[%clk 0:03:01.9]} 1... Nf6 {[%clk 0:03:00.1]} 2. Bf4 {[%clk 0:03:01.8]}
2... e6 {[%clk 0:02:59.2]} 3. e3 {[%clk 0:03:02.7]} 3... c5 {[%clk 0:03:00.2]}
4. Nf3 {[%clk 0:03:02.8]} 4... Nc6 {[%clk 0:03:01]} 5. Nc3 {[%clk 0:03:03.7]}
5... a6 {[%clk 0:03:00.9]} 6. d5 {[%clk 0:03:04.1]} 6... exd5 {[%clk 0:03:01.1]}
7. Nxd5 {[%clk 0:03:06]} 7... Nxd5 {[%clk 0:03:02.1]} 8. Qxd5 {[%clk 0:03:06.2]}
8... Nb4 {[%clk 0:02:41.9]} 9. Qd2 {[%clk 0:02:50.3]} 9... d5 {[%clk 0:02:41.7]}
10. Rd1 {[%clk 0:02:24.1]} 10... Be6 {[%clk 0:02:39.5]} 11. a3 {[%clk
0:02:19.3]} 11... Nc6 {[%clk 0:02:38.2]} 12. Ng5 {[%clk 0:02:09.7]} 12... Qf6
{[%clk 0:02:17.4]} 13. Nxe6 {[%clk 0:02:04.4]} 13... fxe6 {[%clk 0:02:19.3]} 14.
c3 {[%clk 0:01:48.9]} 14... Be7 {[%clk 0:02:14.9]} 15. Bd3 {[%clk 0:01:46.2]}
15... Rd8 {[%clk 0:02:00.3]} 16. O-O {[%clk 0:01:44.4]} 16... O-O {[%clk
0:01:43.3]} 17. Bg3 {[%clk 0:01:45.3]} 17... Kh8 {[%clk 0:01:39.1]} 18. Bb1
{[%clk 0:01:45.3]} 18... e5 {[%clk 0:01:35.7]} 19. Qe2 {[%clk 0:01:44.1]} 19...
Qh6 {[%clk 0:01:31.9]} 20. Rd2 {[%clk 0:01:42.6]} 20... Bf6 {[%clk 0:01:22.4]}
21. Rfd1 {[%clk 0:01:43.6]} 21... d4 {[%clk 0:01:23.6]} 22. cxd4 {[%clk
0:01:31.7]} 22... exd4 {[%clk 0:01:14.2]} 23. Bf4 {[%clk 0:01:29.7]} 23... Bg5
{[%clk 0:01:00.3]} 24. Bxg5 {[%clk 0:01:22]} 24... Qxg5 {[%clk 0:01:02.2]} 25.
exd4 {[%clk 0:01:05.9]} 25... Nxd4 {[%clk 0:01:02]} 26. Qe4 {[%clk 0:01:04.6]}
26... g6 {[%clk 0:00:47.7]} 27. Kh1 {[%clk 0:01:03.7]} 27... Rde8 {[%clk
0:00:44.2]} 28. Qd3 {[%clk 0:00:59.1]} 28... Re7 {[%clk 0:00:27.1]} 29. Qg3
{[%clk 0:00:45.7]} 29... Qxd2 {[%clk 0:00:26.3]} 30. Rg1 {[%clk 0:00:12.6]}
30... Re1 {[%clk 0:00:25.7]} 31. h3 {[%clk 0:00:11.4]} 31... Rxg1+ {[%clk
0:00:21.3]} 32. Kh2 {[%clk 0:00:12.5]} 32... Qf4 {[%clk 0:00:18.7]} 33. Kxg1
{[%clk 0:00:07.7]} 33... Ne2+ {[%clk 0:00:18.2]} 0-1

[Event "*** Titled Tuesday Blitz"]
[Site "Chess.com"]
[Date "2019.06.04"]
[Round "6"]
[White "AsaHoffmann"]
[Black "lexiel"]
[Result "0-1"]
[WhiteElo "2157"]
[BlackElo "2188"]
[TimeControl "180+2"]
[EndTime "14:19:05 PDT"]
[Termination "lexiel won on time"]

1. d4 {[%clk 0:02:54.5]} 1... d6 {[%clk 0:02:36.5]} 2. e4 {[%clk 0:02:53.3]}
2... Nf6 {[%clk 0:02:36.3]} 3. f3 {[%clk 0:02:52.1]} 3... Nbd7 {[%clk 0:02:36]}
4. Be3 {[%clk 0:02:49.3]} 4... g6 {[%clk 0:02:31.1]} 5. Qd2 {[%clk 0:02:46.2]}
5... h6 {[%clk 0:02:29.5]} 6. Nc3 {[%clk 0:02:44.9]} 6... a6 {[%clk 0:02:29.7]}
7. a4 {[%clk 0:02:43.8]} 7... Bg7 {[%clk 0:02:30.2]} 8. Bc4 {[%clk 0:02:41.6]}
8... e6 {[%clk 0:02:31.1]} 9. Nge2 {[%clk 0:02:39.7]} 9... c6 {[%clk 0:02:32.4]}
10. Ba2 {[%clk 0:02:33.8]} 10... d5 {[%clk 0:02:28]} 11. e5 {[%clk 0:02:31.7]}
11... Ng8 {[%clk 0:02:28.6]} 12. h4 {[%clk 0:02:29.1]} 12... f5 {[%clk
0:02:25.8]} 13. exf6 {[%clk 0:02:27.5]} 13... Ngxf6 {[%clk 0:02:26.9]} 14. Nf4
{[%clk 0:02:26.4]} 14... Nf8 {[%clk 0:02:27]} 15. O-O-O {[%clk 0:02:23.5]} 15...
Qc7 {[%clk 0:02:26.5]} 16. Rde1 {[%clk 0:02:22.2]} 16... Qf7 {[%clk 0:02:26.2]}
17. Nd3 {[%clk 0:02:21.3]} 17... N6d7 {[%clk 0:02:23.7]} 18. Bf4 {[%clk
0:02:13.5]} 18... b5 {[%clk 0:02:22.2]} 19. Nxd5 {[%clk 0:02:09.7]} 19... cxd5
{[%clk 0:02:21.2]} 20. Bxd5 {[%clk 0:02:08.3]} 20... Ra7 {[%clk 0:02:10.4]} 21.
Nc5 {[%clk 0:01:50.7]} 21... Nxc5 {[%clk 0:01:55.6]} 22. dxc5 {[%clk 0:01:49.3]}
22... Qf5 {[%clk 0:01:53.6]} 23. Bc6+ {[%clk 0:01:39.2]} 23... Bd7 {[%clk
0:01:53.9]} 24. Qd6 {[%clk 0:01:26.3]} 24... Bxc6 {[%clk 0:01:48.4]} 25. Qb8+
{[%clk 0:01:21.9]} 25... Kf7 {[%clk 0:01:48.9]} 26. Qxa7+ {[%clk 0:01:21.5]}
26... Nd7 {[%clk 0:01:50.4]} 27. Qc7 {[%clk 0:01:17.2]} 27... Qxc5 {[%clk
0:01:50.1]} 28. Rd1 {[%clk 0:01:05.1]} 28... Qc4 {[%clk 0:01:27.9]} 29. Rd3
{[%clk 0:00:46.3]} 29... Re8 {[%clk 0:01:13.8]} 30. Rhd1 {[%clk 0:00:43.1]}
30... Kg8 {[%clk 0:01:11.4]} 31. Rxd7 {[%clk 0:00:34.4]} 31... Bxd7 {[%clk
0:01:08.6]} 32. Rxd7 {[%clk 0:00:32.9]} 32... Qf1+ {[%clk 0:01:03.7]} 33. Kd2
{[%clk 0:00:31.8]} 33... Qxg2+ {[%clk 0:01:04.5]} 34. Ke1 {[%clk 0:00:27]} 34...
Bf8 {[%clk 0:00:59.1]} 35. Be5 {[%clk 0:00:20.2]} 35... Qh1+ {[%clk 0:00:51]}
36. Ke2 {[%clk 0:00:17.8]} 36... Qg2+ {[%clk 0:00:48.9]} 37. Ke3 {[%clk
0:00:15.8]} 37... Qg1+ {[%clk 0:00:49]} 38. Ke2 {[%clk 0:00:11.4]} 38... Qg2+
{[%clk 0:00:50]} 39. Ke3 {[%clk 0:00:09.9]} 39... Bc5+ {[%clk 0:00:50.1]} 40.
Qxc5 {[%clk 0:00:08.6]} 40... Qg1+ {[%clk 0:00:51.1]} 41. Ke4 {[%clk 0:00:08.1]}
41... Qxc5 {[%clk 0:00:51.8]} 42. Rg7+ {[%clk 0:00:06.5]} 42... Kf8 {[%clk
0:00:52.3]} 43. Rxg6 {[%clk 0:00:06.4]} 43... Qxc2+ {[%clk 0:00:52.9]} 0-1

[Event "*** Titled Tuesday Blitz"]
[Site "Chess.com"]
[Date "2019.06.04"]
[Round "6"]
[White "Oleg_Papayan"]
[Black "Bryakin_Mikhail"]
[Result "0-1"]
[WhiteElo "2551"]
[BlackElo "2729"]
[TimeControl "180+2"]
[EndTime "14:19:06 PDT"]
[Termination "Bryakin_Mikhail won by resignation"]

1. e4 {[%clk 0:03:01.9]} 1... c5 {[%clk 0:02:57.4]} 2. Nf3 {[%clk 0:03:02.2]}
2... Nc6 {[%clk 0:02:57.8]} 3. d4 {[%clk 0:03:03.4]} 3... cxd4 {[%clk
0:02:59.7]} 4. Nxd4 {[%clk 0:03:05.3]} 4... Nf6 {[%clk 0:03:00.9]} 5. Nc3 {[%clk
0:03:06.2]} 5... e5 {[%clk 0:03:02.3]} 6. Ndb5 {[%clk 0:03:07.5]} 6... d6 {[%clk
0:03:02.9]} 7. Bg5 {[%clk 0:03:08.7]} 7... a6 {[%clk 0:03:03.9]} 8. Bxf6 {[%clk
0:03:10.1]} 8... gxf6 {[%clk 0:03:03.4]} 9. Na3 {[%clk 0:03:12]} 9... b5 {[%clk
0:03:04.3]} 10. Nd5 {[%clk 0:03:13.1]} 10... f5 {[%clk 0:03:05.7]} 11. Bd3
{[%clk 0:03:12.4]} 11... Be6 {[%clk 0:03:07.1]} 12. O-O {[%clk 0:03:01.1]} 12...
Bg7 {[%clk 0:03:07.7]} 13. Qh5 {[%clk 0:02:55.6]} 13... h6 {[%clk 0:02:30.6]}
14. c4 {[%clk 0:02:54.8]} 14... b4 {[%clk 0:02:28.6]} 15. Nc2 {[%clk 0:02:55.7]}
15... Rb8 {[%clk 0:02:29.8]} 16. Nce3 {[%clk 0:02:52.9]} 16... f4 {[%clk
0:02:29.9]} 17. Nf5 {[%clk 0:02:53]} 17... Bxf5 {[%clk 0:02:29.6]} 18. exf5
{[%clk 0:02:54.6]} 18... Nd4 {[%clk 0:02:28.2]} 19. Rae1 {[%clk 0:02:47.5]}
19... Qg5 {[%clk 0:02:25.8]} 20. Qxg5 {[%clk 0:02:35.2]} 20... hxg5 {[%clk
0:02:27.7]} 21. f6 {[%clk 0:02:36.8]} 21... Bf8 {[%clk 0:02:25.5]} 22. b3 {[%clk
0:02:37.6]} 22... Kd7 {[%clk 0:02:23.4]} 23. Re4 {[%clk 0:02:37.5]} 23... g4
{[%clk 0:02:19.1]} 24. Nxf4 {[%clk 0:02:27.5]} 24... Bh6 {[%clk 0:02:05.8]} 25.
Nd5 {[%clk 0:02:25.8]} 25... Rbg8 {[%clk 0:02:05.8]} 26. Rfe1 {[%clk 0:02:25.9]}
26... Nc6 {[%clk 0:01:59.6]} 27. Rxg4 {[%clk 0:02:23.5]} 27... Rxg4 {[%clk
0:01:53.3]} 28. Bf5+ {[%clk 0:02:24.7]} 28... Kd8 {[%clk 0:01:54.8]} 29. Bxg4
{[%clk 0:02:26.6]} 29... Bg5 {[%clk 0:01:53.5]} 30. Re4 {[%clk 0:01:28.1]} 30...
Rh6 {[%clk 0:01:47.5]} 31. Bf5 {[%clk 0:01:22.7]} 31... Bxf6 {[%clk 0:01:46.4]}
32. Rg4 {[%clk 0:01:22.9]} 32... Ne7 {[%clk 0:01:37]} 33. Be4 {[%clk 0:00:56.4]}
33... a5 {[%clk 0:01:37.7]} 34. g3 {[%clk 0:00:53.3]} 34... Kd7 {[%clk
0:01:25.8]} 35. Nxf6+ {[%clk 0:00:54.1]} 35... Rxf6 {[%clk 0:01:27.7]} 36. h4
{[%clk 0:00:55.6]} 36... Ke6 {[%clk 0:01:24.7]} 37. Rg7 {[%clk 0:00:42.2]} 37...
Rh6 {[%clk 0:01:25.9]} 38. Kg2 {[%clk 0:00:37.5]} 38... f5 {[%clk 0:01:23.9]}
39. Bb7 {[%clk 0:00:37.6]} 39... Rh8 {[%clk 0:01:20.6]} 40. f3 {[%clk
0:00:37.6]} 40... Kf6 {[%clk 0:01:19.8]} 41. Rg5 {[%clk 0:00:38.6]} 41... Ng6
{[%clk 0:01:10.7]} 42. Bd5 {[%clk 0:00:34.5]} 42... Rh6 {[%clk 0:01:05.8]} 43.
Kf2 {[%clk 0:00:35.5]} 43... Rh8 {[%clk 0:01:03.7]} 44. Ke3 {[%clk 0:00:28.7]}
44... f4+ {[%clk 0:01:04.5]} 45. Kf2 {[%clk 0:00:28.3]} 45... fxg3+ {[%clk
0:01:04.9]} 46. Kxg3 {[%clk 0:00:30.2]} 46... Nxh4 {[%clk 0:01:06.3]} 47. Rg4
{[%clk 0:00:29.9]} 47... Nf5+ {[%clk 0:01:06.5]} 48. Kf2 {[%clk 0:00:31.3]}
48... Rh2+ {[%clk 0:01:07.4]} 49. Rg2 {[%clk 0:00:32.3]} 49... Rxg2+ {[%clk
0:01:02.6]} 50. Kxg2 {[%clk 0:00:34.2]} 50... Ne3+ {[%clk 0:01:04.5]} 51. Kf2
{[%clk 0:00:34.7]} 51... Nd1+ {[%clk 0:01:06.4]} 52. Ke1 {[%clk 0:00:33.3]}
52... Nc3 {[%clk 0:01:08.3]} 0-1

[Event "*** Titled Tuesday Blitz"]
[Site "Chess.com"]
[Date "2019.06.04"]
[Round "6"]
[White "jk13"]
[Black "Fins0905"]
[Result "1-0"]
[WhiteElo "2547"]
[BlackElo "2669"]
[TimeControl "180+2"]
[EndTime "14:19:12 PDT"]
[Termination "jk13 won by checkmate"]

1. e4 {[%clk 0:02:50.6]} 1... d5 {[%clk 0:02:59.4]} 2. exd5 {[%clk 0:02:51.2]}
2... Qxd5 {[%clk 0:03:00.3]} 3. Nc3 {[%clk 0:02:51.5]} 3... Qa5 {[%clk
0:03:01.2]} 4. Bc4 {[%clk 0:02:46.2]} 4... c6 {[%clk 0:03:00.2]} 5. d4 {[%clk
0:02:46.2]} 5... Nf6 {[%clk 0:03:00.4]} 6. Nf3 {[%clk 0:02:45.7]} 6... Bf5
{[%clk 0:03:00.5]} 7. Bd2 {[%clk 0:02:46.6]} 7... Qc7 {[%clk 0:02:57.5]} 8. Qe2
{[%clk 0:02:33.2]} 8... e6 {[%clk 0:02:58]} 9. d5 {[%clk 0:02:26.6]} 9... cxd5
{[%clk 0:02:55.2]} 10. Nxd5 {[%clk 0:02:27.8]} 10... Nxd5 {[%clk 0:02:54.7]} 11.
Bxd5 {[%clk 0:02:29]} 11... Be7 {[%clk 0:02:50.8]} 12. Nd4 {[%clk 0:02:07.5]}
12... O-O {[%clk 0:02:32.1]} 13. Nxf5 {[%clk 0:02:06.2]} 13... exf5 {[%clk
0:02:34]} 14. O-O {[%clk 0:01:56.9]} 14... Bf6 {[%clk 0:02:33.5]} 15. c4 {[%clk
0:01:38.6]} 15... Nc6 {[%clk 0:02:28.4]} 16. Qd3 {[%clk 0:01:35.1]} 16... g6
{[%clk 0:02:13.3]} 17. Bc3 {[%clk 0:01:34.5]} 17... Ne5 {[%clk 0:01:59.3]} 18.
Qg3 {[%clk 0:01:23.6]} 18... Rac8 {[%clk 0:01:48.4]} 19. Rfe1 {[%clk 0:01:21.2]}
19... Ng4 {[%clk 0:01:39.9]} 20. Qxc7 {[%clk 0:01:13.3]} 20... Rxc7 {[%clk
0:01:41.8]} 21. Bb4 {[%clk 0:01:10.9]} 21... Bd4 {[%clk 0:01:14.7]} 22. Re2
{[%clk 0:00:59.6]} 22... Rd8 {[%clk 0:01:05.7]} 23. Rd1 {[%clk 0:00:59.6]} 23...
Be5 {[%clk 0:00:41.9]} 24. Bxf7+ {[%clk 0:00:35.1]} 24... Kxf7 {[%clk
0:00:37.7]} 25. Rxd8 {[%clk 0:00:37]} 25... Rxc4 {[%clk 0:00:32.4]} 26. Be1
{[%clk 0:00:34]} 26... Bxh2+ {[%clk 0:00:30.8]} 27. Kf1 {[%clk 0:00:35.1]} 27...
Bc7 {[%clk 0:00:26]} 28. Rd7+ {[%clk 0:00:35.3]} 28... Kf6 {[%clk 0:00:27.2]}
29. Bc3+ {[%clk 0:00:30]} 29... Kg5 {[%clk 0:00:24.9]} 30. Rxh7 {[%clk
0:00:22.2]} 30... b5 {[%clk 0:00:24.6]} 31. f3 {[%clk 0:00:18.5]} 31... Nf6
{[%clk 0:00:19.4]} 32. Bxf6+ {[%clk 0:00:13.4]} 32... Kxf6 {[%clk 0:00:20.3]}
33. Rhe7 {[%clk 0:00:14.7]} 33... Bb6 {[%clk 0:00:19.7]} 34. R7e6+ {[%clk
0:00:15.7]} 34... Kg5 {[%clk 0:00:21.1]} 35. Rd2 {[%clk 0:00:16.3]} 35... Rc1+
{[%clk 0:00:20.4]} 36. Ke2 {[%clk 0:00:17.8]} 36... Rg1 {[%clk 0:00:21.2]} 37.
Kd3 {[%clk 0:00:19.4]} 37... Rc1 {[%clk 0:00:15.9]} 38. Rde2 {[%clk 0:00:19.2]}
38... Rd1+ {[%clk 0:00:15.4]} 39. Kc2 {[%clk 0:00:20.4]} 39... Rd8 {[%clk
0:00:15.2]} 40. Kb3 {[%clk 0:00:21.5]} 40... Rd3+ {[%clk 0:00:15.8]} 41. Kc2
{[%clk 0:00:22.5]} 41... Rd8 {[%clk 0:00:17.7]} 42. Rc6 {[%clk 0:00:23.8]} 42...
Rg8 {[%clk 0:00:17]} 43. Ree6 {[%clk 0:00:24.9]} 43... Kh5 {[%clk 0:00:17.7]}
44. b3 {[%clk 0:00:24.4]} 44... g5 {[%clk 0:00:15.7]} 45. Rh6# {[%clk
0:00:24.5]} 1-0

[Event "*** Titled Tuesday Blitz"]
[Site "Chess.com"]
[Date "2019.06.04"]
[Round "6"]
[White "Rish_97"]
[Black "ehrenfeld"]
[Result "1-0"]
[WhiteElo "2474"]
[BlackElo "2495"]
[TimeControl "180+2"]
[EndTime "14:19:17 PDT"]
[Termination "Rish_97 won by resignation"]

1. e4 {[%clk 0:03:01.9]} 1... e5 {[%clk 0:03:00.5]} 2. Nf3 {[%clk 0:03:02.4]}
2... Nc6 {[%clk 0:03:01.7]} 3. Bc4 {[%clk 0:03:03.4]} 3... Nf6 {[%clk
0:03:02.1]} 4. d3 {[%clk 0:03:04.2]} 4... Be7 {[%clk 0:03:03.1]} 5. O-O {[%clk
0:03:04.5]} 5... O-O {[%clk 0:03:04]} 6. a4 {[%clk 0:03:06.2]} 6... d6 {[%clk
0:03:04.3]} 7. Re1 {[%clk 0:03:02.9]} 7... Be6 {[%clk 0:03:02.4]} 8. Nbd2 {[%clk
0:03:00]} 8... Qd7 {[%clk 0:02:59.2]} 9. c3 {[%clk 0:02:58.7]} 9... h6 {[%clk
0:02:51.3]} 10. Bxe6 {[%clk 0:02:50.2]} 10... fxe6 {[%clk 0:02:44.8]} 11. b4
{[%clk 0:02:50.9]} 11... a6 {[%clk 0:02:41.5]} 12. Nf1 {[%clk 0:02:39.4]} 12...
Nh5 {[%clk 0:02:29.4]} 13. Rb1 {[%clk 0:02:37.7]} 13... Nf4 {[%clk 0:02:29.2]}
14. b5 {[%clk 0:02:33.4]} 14... axb5 {[%clk 0:02:30.1]} 15. axb5 {[%clk
0:02:35.3]} 15... Nd8 {[%clk 0:02:30.1]} 16. g3 {[%clk 0:02:17.3]} 16... Nh3+
{[%clk 0:02:18.8]} 17. Kg2 {[%clk 0:02:17.8]} 17... Ng5 {[%clk 0:02:18.2]} 18.
Bxg5 {[%clk 0:02:11.7]} 18... Bxg5 {[%clk 0:02:17.5]} 19. Nxg5 {[%clk
0:02:11.5]} 19... hxg5 {[%clk 0:02:17.7]} 20. Ne3 {[%clk 0:01:58]} 20... Qf7
{[%clk 0:02:12.2]} 21. Qe2 {[%clk 0:01:40.4]} 21... Qg6 {[%clk 0:02:08.9]} 22.
b6 {[%clk 0:01:36.8]} 22... c6 {[%clk 0:02:07.3]} 23. Ra1 {[%clk 0:01:34.7]}
23... Nf7 {[%clk 0:02:07.5]} 24. Ra7 {[%clk 0:01:25.1]} 24... Rab8 {[%clk
0:02:03.7]} 25. f3 {[%clk 0:01:07.8]} 25... d5 {[%clk 0:01:58.1]} 26. Ng4 {[%clk
0:01:05.2]} 26... Rfe8 {[%clk 0:01:51.2]} 27. Rea1 {[%clk 0:01:01.3]} 27... Red8
{[%clk 0:01:27.7]} 28. R1a2 {[%clk 0:00:43.6]} 28... Re8 {[%clk 0:01:26.5]} 29.
Qe3 {[%clk 0:00:40.7]} 29... Red8 {[%clk 0:01:25.7]} 30. Qe2 {[%clk 0:00:41.5]}
30... Re8 {[%clk 0:01:26.3]} 31. R7a3 {[%clk 0:00:41.8]} 31... Qh5 {[%clk
0:01:12.9]} 32. f4 {[%clk 0:00:38]} 32... Qg6 {[%clk 0:00:54.2]} 33. fxe5 {[%clk
0:00:38]} 33... dxe4 {[%clk 0:00:54.1]} 34. d4 {[%clk 0:00:30.1]} 34... c5
{[%clk 0:00:32.9]} 35. dxc5 {[%clk 0:00:29.2]} 35... Rec8 {[%clk 0:00:30.8]} 36.
Ra5 {[%clk 0:00:26.1]} 36... Qf5 {[%clk 0:00:27.8]} 37. R2a4 {[%clk 0:00:22.4]}
37... Nxe5 {[%clk 0:00:24.7]} 38. Nxe5 {[%clk 0:00:23.5]} 38... Qxe5 {[%clk
0:00:25.8]} 39. Qxe4 {[%clk 0:00:23.7]} 39... Rxc5 {[%clk 0:00:22.1]} 40. Qxe5
{[%clk 0:00:23.9]} 40... Rxe5 {[%clk 0:00:22.6]} 41. Rxe5 {[%clk 0:00:25.8]} 1-0